bitfinex-derivatives/quotes_ETHF0:USTF0_20250518
["timestamp","ask_amount","ask_price","bid_price","bid_amount"]
[1747582071152,3.2078,2560.4,2560.3,2.14019]
[1747582071350,3.98866,2560.4,2560.3,1.3593]
[1747582071549,3.98866,2560.4,2560.3,2.14019]
[1747582071753,3.98866,2560.4,2560.3,1.3593]
[1747582072761,3.98866,2560.4,2560.3,2.47260827]
[1747582073259,3.98866,2560.4,2560.3,3.25350827]
[1747582073456,3.98866,2560.4,2560.3,2.47260827]
[1747582075964,3.2068,2560.4,2560.3,3.25350827]
[1747582076264,3.98766,2560.4,2560.3,3.25350827]
[1747582077062,3.2068,2560.4,2560.3,3.25350827]
[1747582077356,3.98766,2560.4,2560.3,2.47260827]
[1747582078461,0.78086,2560.4,2560.3,2.47260827]
[1747582078861,3.98866,2560.4,2560.3,1.11330827]
[1747582079361,0.78086,2560.4,2560.3,1.11330827]
[1747582080469,0.7809,2560.3,2560.2,1.3335]
[1747582081764,0.78089,2560.4,2560.2,1.3335]
[1747582081970,12.1598,2560.7,2560.3,0.7809]
[1747582082167,0.78083,2560.5,2560.4,1.3514]
[1747582082466,0.7808,2560.6,2560.4,2.13224]
[1747582082662,0.78083,2560.5,2560.4,2.13224]
[1747582082868,0.78083,2560.5,2560.4,1.3514]
[1747582083961,0.78083,2560.5,2560.4,2.46165867]
[1747582085269,0.78083,2560.5,2560.4,3.24251867]
[1747582085571,3.2078,2560.7,2560.4,2.46165867]
[1747582085769,3.2078,2560.7,2560.6,0.7808]
[1747582085977,0.78081,2560.6,2560.5,0.78081]
[1747582086277,3.9886,2560.7,2560.6,0.7808]
[1747582086467,3.9886,2560.7,2560.6,1.6923]
[1747582086773,3.2078,2561.0,2560.8,0.78074]
[1747582086981,3.2078,2561.0,2560.9,0.78071]
[1747582087167,3.10600302,2561.1,2560.9,0.78071]
[1747582087363,3.88665302,2561.1,2561.0,1.2963]
[1747582089576,3.10600302,2561.1,2561.0,2.07698]
[1747582089782,3.10600302,2561.1,2561.0,7.07698]
[1747582089979,3.10600302,2561.1,2561.0,2.07698]
[1747582090578,3.2078,2561.5,2561.2,0.78061]
[1747582090785,3.2078,2561.5,2561.3,2.21]
[1747582090980,3.98834,2561.5,2561.4,0.78056]
[1747582091174,3.98834,2561.5,2561.4,2.03306]
[1747582092670,3.98834,2561.5,2561.4,1.2525]
[1747582093067,3.98834,2561.5,2561.4,2.03306]
[1747582093272,3.2078,2561.5,2561.4,2.03306]
[1747582093474,3.98833,2561.5,2561.4,2.03306]
[1747582093675,0.78053,2561.5,2561.4,2.03306]
[1747582093977,0.78053,2561.5,2561.4,1.2525]
[1747582094676,2.05173,2561.5,2561.4,1.2525]
[1747582094877,0.78053,2561.5,2561.4,1.2525]
[1747582095070,0.78053,2561.5,2561.4,2.03306]
[1747582095273,0.78053,2561.5,2561.4,1.2525]
[1747582095470,0.78053,2561.5,2561.4,2.03306]
[1747582096472,0.78051,2561.6,2561.5,0.7805]
[1747582096685,0.78048,2561.7,2561.6,0.78049]
[1747582097183,0.78051,2561.6,2561.5,0.78051]
[1747582097377,0.78053,2561.5,2561.4,1.2525]
[1747582097779,0.78053,2561.5,2561.4,2.03306]
[1747582098375,3.29944,2561.8,2561.4,1.2525]
[1747582098376,0.78052,2561.6,2561.4,1.2525]
[1747582098576,0.78053,2561.5,2561.4,2.2264]
[1747582099586,0.78051,2561.6,2561.5,0.78051]
[1747582099886,0.7805,2561.6,2561.5,2.10071]
[1747582100085,0.7805,2561.6,2561.5,1.3202]
[1747582101280,0.78049,2561.7,2561.6,0.78049]
[1747582101471,0.7805,2561.6,2561.5,2.10071]
[1747582101677,0.78048,2561.7,2561.6,0.78048]
[1747582101878,0.78053,2561.5,2561.4,1.75445]
[1747582102889,0.78052,2561.6,2561.5,0.78051]
[1747582103183,0.78049,2561.7,2561.6,0.78049]
[1747582103588,0.78052,2561.6,2561.5,0.78051]
[1747582103886,1.3483,2561.8,2561.5,0.78051]
[1747582103887,2.12877,2561.8,2561.7,0.78047]
[1747582104085,0.78049,2561.7,2561.6,0.78048]
[1747582104892,0.7805,2561.6,2561.5,3.98831]
[1747582105393,0.78049,2561.7,2561.6,0.78048]
[1747582106888,0.78048,2561.7,2561.6,0.78047]
[1747582109590,0.78044,2561.9,2561.8,0.78041]
[1747582110788,2.09957,2562.1,2562.0,0.78038]
[1747582110989,0.7803,2562.3,2562.2,0.78029]
[1747582111386,4.4748,2562.5,2562.1,0.78033]
[1747582111387,0.78034,2562.2,2562.1,0.78033]
[1747582111692,0.78035,2562.1,2562.0,11.61866]
[1747582113193,0.78035,2562.1,2562.0,2.71566]
[1747582113395,0.78035,2562.1,2562.0,11.61566]
[1747582114395,0.78035,2562.1,2562.0,10.8353]
[1747582114801,0.78035,2562.1,2562.0,2.71568]
[1747582115698,0.78035,2562.1,2562.0,1.9353]
[1747582115893,6.44801,2562.2,2561.5,3.2078]
[1747582116098,0.78043,2561.9,2561.8,0.78043]
[1747582116594,3.2078,2562.5,2561.8,3.2078]
[1747582116897,0.78028,2562.4,2562.3,0.78026]
[1747582117098,0.78031,2562.3,2562.2,0.78031]
[1747582117492,0.78033,2562.2,2562.1,0.78033]
[1747582117792,2.13867,2562.4,2562.3,0.78029]
[1747582117987,1.3584,2562.4,2562.3,0.78029]
[1747582118188,3.2078,2562.5,2562.4,0.78026]
[1747582118697,3.10600302,2562.8,2562.7,0.78016]
[1747582119093,3.10600302,2562.8,2562.7,1.88244864]
[1747582119703,3.10600302,2562.8,2562.7,12.11614864]
[1747582120200,3.10600302,2562.8,2562.7,17.11614864]
[1747582120399,3.10600302,2562.8,2562.7,24.66484725]
[1747582120999,0.78002,2563.2,2563.1,0.78004]
[1747582121298,2.02607,2563.4,2562.8,1.95034]
[1747582121502,4.90934,2563.5,2562.9,1.95027]
[1747582121704,3.98774,2563.5,2563.3,0.77995]
[1747582121895,3.98774,2563.5,2563.4,2.1906]
[1747582122297,5.23384,2563.5,2563.4,2.1906]
[1747582123203,0.77992,2563.5,2563.4,2.1906]
[1747582123907,1.2537,2563.6,2563.4,2.97052]
[1747582124103,0.77992,2563.5,2563.4,2.1906]
[1747582124406,0.78005,2563.1,2563.0,8.881]
[1747582124604,2.1968,2563.4,2563.1,0.78004]
[1747582124804,2.1968,2563.4,2563.2,1.2538]
[1747582125004,3.2078,2563.5,2563.3,0.77996]
[1747582125305,3.2078,2563.5,2563.4,1.2538]
[1747582125499,3.98772,2563.5,2563.4,1.2538]
[1747582126207,0.77995,2563.4,2563.3,0.9258]
[1747582126411,2.05455,2563.4,2563.3,0.9258]
[1747582126606,2.05455,2563.4,2563.1,1.2362]
[1747582126607,0.78001,2563.2,2563.1,1.2362]
[1747582131803,0.78007,2563.0,2562.9,4.5647]
[1747582132004,0.78007,2563.0,2562.9,3.2078]
[1747582132712,0.7801,2562.9,2562.8,1.2965]
[1747582132905,2.1096,2562.9,2562.8,1.2965]
[1747582133714,0.78019,2562.6,2562.5,10.94808519]
[1747582133916,0.78019,2562.6,2562.5,3.37758519]
[1747582134510,1.3295,2562.7,2562.5,3.37758519]
[1747582134714,3.98795,2562.8,2562.7,0.78016]
[1747582135212,0.78009,2563.0,2562.9,0.78009]
[1747582135604,3.2078,2563.1,2563.0,0.78007]
[1747582136114,3.98784,2563.1,2563.0,0.78007]
[1747582136511,0.78004,2563.1,2563.0,0.78007]
[1747582137108,1.3266,2563.3,2562.9,1.3251]
[1747582137714,0.78007,2563.0,2562.9,2.10519]
[1747582138311,0.78007,2563.0,2562.9,1.3251]
[1747582138916,0.78007,2563.0,2562.9,2.1052]
[1747582139918,0.78007,2563.0,2562.9,1.3251]
[1747582140419,0.78016,2562.7,2562.6,10.78446519]
[1747582140613,0.78016,2562.7,2562.6,2.08478519]
[1747582140812,0.78016,2562.7,2562.6,1.14628519]
[1747582141719,1.323,2562.7,2562.6,0.7802]
[1747582141916,0.78016,2562.8,2562.7,0.78016]
[1747582142319,0.9095,2563.2,2562.5,3.2078]
[1747582142518,0.9095,2563.2,2563.1,0.78003]
[1747582142519,0.78003,2563.2,2563.1,0.78003]
[1747582142820,0.77999,2563.3,2563.2,0.77999]
[1747582143114,0.78003,2563.2,2563.1,0.78001]
[1747582143522,0.78,2563.3,2563.2,0.78]
[1747582143821,0.78003,2563.2,2563.1,0.78002]
[1747582144819,4.5308,2563.4,2563.1,0.78002]
[1747582145020,0.78,2563.3,2563.2,1.297]
[1747582145210,0.78,2563.3,2563.2,2.07701]
[1747582146022,0.78,2563.3,2563.2,1.297]
[1747582146221,1.331,2563.3,2562.9,0.9063]
[1747582146415,0.78004,2563.1,2563.0,0.78007]
[1747582146614,0.8936,2563.2,2562.9,2.2033]
[1747582146924,0.8936,2563.2,2563.1,0.78004]
[1747582147114,1.331,2563.3,2562.9,2.2033]
[1747582147516,2.111,2563.3,2563.2,0.78001]
[1747582148122,0.78003,2563.2,2563.1,0.78002]
[1747582148816,1.331,2563.3,2563.2,0.78001]
[1747582148817,2.111,2563.3,2563.2,0.78001]
[1747582149015,0.78003,2563.2,2563.1,2.05442]
[1747582149325,2.111,2563.3,2563.2,0.78001]
[1747582150123,1.331,2563.3,2563.2,0.78001]
[1747582150813,3.2078,2563.4,2563.3,0.77998]
[1747582151017,1.3631,2563.6,2563.3,0.77998]
[1747582151213,1.3631,2563.6,2563.4,1.3053]
[1747582151416,0.77991,2563.6,2563.4,1.3053]
[1747582151720,0.77991,2563.6,2563.5,0.9481]
[1747582151920,0.77991,2563.6,2563.5,1.8318]
[1747582152225,0.77991,2563.6,2563.5,2.6117]
[1747582153421,0.77991,2563.6,2563.5,1.8318]
[1747582153623,0.77991,2563.6,2563.5,2.61172]
[1747582153827,0.77991,2563.6,2563.5,3.85792]
[1747582155021,12.0688,2563.7,2563.6,0.77989]
[1747582155217,3.98850302,2564.1,2563.9,0.77978]
[1747582155429,3.88576302,2564.1,2563.9,0.77978]
[1747582155726,3.88576302,2564.1,2564.0,2.9702]
[1747582156024,7.09356302,2564.1,2564.0,2.0989]
[1747582156424,7.14990302,2564.1,2563.5,3.2078]
[1747582156622,0.77988,2563.7,2563.6,0.77989]
[1747582156930,0.77988,2563.7,2563.6,1.2996]
[1747582157619,3.2078,2563.8,2563.4,0.8527]
[1747582157620,0.77992,2563.5,2563.4,0.8527]
[1747582157934,0.77998,2563.3,2563.2,1.2996]
[1747582158226,0.78004,2563.1,2563.0,1.7201]
[1747582158524,0.78004,2563.1,2563.0,3.0197]
[1747582159121,0.78007,2563.0,2562.9,1.14628519]
[1747582159621,1.67285,2563.1,2562.9,2.44588519]
[1747582159823,0.78006,2563.1,2562.9,2.44588519]
[1747582160017,2.06432,2563.2,2563.0,0.78006]
[1747582160227,2.06432,2563.2,2563.1,2.1078]
[1747582160424,3.2078,2563.6,2563.1,2.1078]
[1747582160727,0.77998,2563.3,2563.2,2.1497]
[1747582160927,0.77997,2563.4,2563.2,2.92971]
[1747582161126,0.77997,2563.4,2563.3,1.2692]
[1747582164130,2.13294,2563.5,2563.3,1.2692]
[1747582164332,1.353,2563.5,2563.3,2.04917]
[1747582164533,2.13294,2563.5,2563.3,2.04917]
[1747582164740,12.84772,2563.6,2563.4,0.77995]
[1747582164924,12.84772,2563.6,2563.5,1.3531]
[1747582165232,14.17922,2563.6,2563.5,1.3531]
[1747582165832,10.97142,2563.6,2563.5,1.3531]
[1747582166021,9.63992,2563.6,2563.5,2.13302]
[1747582166224,9.63992,2563.6,2563.5,1.3531]
[1747582166431,9.63992,2563.6,2563.5,2.13302]
[1747582166733,9.63992,2563.6,2563.5,1.3531]
[1747582166930,9.63989,2563.6,2563.5,2.13302]
[1747582167133,9.63989,2563.6,2563.5,1.3531]
[1747582167430,9.63989,2563.6,2563.5,2.13302]
[1747582168031,9.63989,2563.6,2563.5,1.3531]
[1747582169426,9.63989,2563.6,2563.5,2.13302]
[1747582169933,9.63989,2563.6,2563.5,1.3531]
[1747582172433,8.86,2563.6,2563.4,0.77994]
[1747582172637,1.2848,2563.5,2563.4,0.77994]
[1747582172828,0.77995,2563.4,2563.3,2.14897]
[1747582173236,0.77995,2563.4,2563.3,1.369]
[1747582173830,0.77995,2563.4,2563.3,2.47446103]
[1747582174035,0.77995,2563.4,2563.3,1.10546103]
[1747582174637,2.50295,2563.4,2563.3,1.10546103]
[1747582174836,3.78775,2563.4,2563.3,1.10546103]
[1747582176440,0.78001,2563.2,2563.1,2.2092]
[1747582181839,0.78005,2563.1,2563.0,0.78006]
[1747582182136,0.78005,2563.1,2563.0,2.07756]
[1747582182541,0.78005,2563.1,2563.0,1.2975]
[1747582182841,0.78005,2563.1,2563.0,2.07757]
[1747582183235,0.78005,2563.1,2563.0,1.2975]
[1747582183631,3.2078,2563.2,2563.1,0.78004]
[1747582185243,3.98783,2563.2,2563.0,1.2975]
[1747582185539,3.98783,2563.2,2563.1,0.78004]
[1747582186342,0.78003,2563.2,2563.1,0.78004]
[1747582186539,3.98783,2563.2,2563.1,0.78004]
[1747582188149,0.78003,2563.2,2563.1,0.78004]
[1747582188443,3.98783,2563.2,2563.1,0.78004]
[1747582189449,0.78004,2563.1,2563.0,1.2975]
[1747582189742,2.09154,2563.1,2563.0,1.2975]
[1747582190243,2.09154,2563.1,2563.0,2.07757]
[1747582190647,0.78004,2563.1,2563.0,2.07757]
[1747582190848,0.78004,2563.1,2563.0,3.18449711]
[1747582192049,0.78004,2563.1,2563.0,2.40442711]
[1747582192251,0.78004,2563.1,2563.0,1.10692711]
[1747582192643,2.08994,2563.1,2563.0,1.10692711]
[1747582193152,0.7801,2562.9,2562.8,1.703]
[1747582193352,0.7801,2562.9,2562.8,3.0461]
[1747582194455,0.78017,2562.7,2562.6,4.35408519]
[1747582195150,0.78017,2562.7,2562.6,5.69718519]
[1747582195350,0.78017,2562.7,2562.6,3.59733486]
[1747582195549,0.78017,2562.7,2562.6,2.25423486]
[1747582196347,2.11087,2562.7,2562.6,2.25423486]
[1747582196553,0.78026,2562.4,2562.3,3.0109]
[1747582196757,0.78025,2562.5,2562.3,3.79119]
[1747582196949,8.82,2562.7,2562.4,1.3235]
[1747582197253,0.7802,2562.6,2562.5,1.10845477]
[1747582197450,0.7802,2562.6,2562.5,3.21218477]
[1747582197956,0.7802,2562.6,2562.5,2.10373]
[1747582198356,0.7802,2562.6,2562.5,2.43236665]
[1747582199554,0.7802,2562.6,2562.5,1.3235]
[1747582200255,12.80798,2562.7,2562.5,1.3235]
[1747582200459,0.78013,2562.9,2562.5,1.3235]
[1747582200655,11.9838,2563.0,2562.5,1.3235]
[1747582201063,11.9838,2563.0,2562.9,0.7801]
[1747582201255,12.76387,2563.0,2562.9,0.7801]
[1747582201661,3.2078,2563.3,2563.2,0.77999]
[1747582202363,1.2798,2563.8,2563.1,1.3025]
[1747582202568,0.77998,2563.3,2563.1,10.0745]
[1747582202768,0.77998,2563.3,2563.2,1.3025]
[1747582203366,3.98778,2563.3,2563.2,1.3025]
[1747582203571,0.78004,2563.1,2563.0,1.7489]
[1747582204366,0.78004,2563.1,2563.0,0.8928]
[1747582204568,0.78007,2563.0,2562.9,1.10912747]
[1747582204769,3.98787,2563.0,2562.9,1.10912747]
[1747582204970,3.2078,2563.4,2562.9,1.10912747]
[1747582205173,0.78004,2563.1,2563.0,1.3025]
[1747582206573,1.2464,2563.2,2562.7,1.61216]
[1747582206876,0.7801,2562.9,2562.8,1.2616]
[1747582207072,0.78013,2562.8,2562.7,0.832]
[1747582207270,2.02653,2562.8,2562.7,0.832]
[1747582207868,2.02653,2562.8,2562.6,3.31672295]
[1747582207869,4.4542,2562.8,2562.6,2.41992295]
[1747582208069,2.02657,2562.7,2562.6,1.2616]
[1747582208269,3.98795,2562.8,2562.6,1.2616]
[1747582208471,8.776,2563.0,2562.6,1.2616]
[1747582208673,3.2078,2563.2,2562.8,3.2078]
[1747582208875,0.78006,2563.1,2562.9,0.837]
[1747582209075,0.78007,2563.0,2562.9,2.886]
[1747582209577,0.78007,2563.0,2562.9,2.1059]
[1747582210269,1.2938,2563.1,2562.9,2.1059]
[1747582210471,3.2078,2563.2,2563.1,0.78004]
[1747582210670,8.776,2563.4,2563.3,0.77998]
[1747582211073,3.98772,2563.5,2563.4,0.77995]
[1747582211473,3.2078,2563.5,2563.4,0.77995]
[1747582211671,4.43038491,2563.7,2563.6,0.77989]
[1747582211672,3.11568491,2563.7,2563.6,0.77989]
[1747582212572,3.11568491,2563.7,2563.6,2.13639]
[1747582213673,0.77986,2563.7,2563.6,10.1125]
[1747582213978,0.77986,2563.7,2563.6,2.46315491]
[1747582214173,0.77985,2563.8,2563.6,3.24304491]
[1747582214382,3.98762,2563.9,2563.7,1.2776]
[1747582214677,0.77983,2563.8,2563.7,1.2776]
[1747582214874,0.77986,2563.7,2563.6,1.10665491]
[1747582215083,0.77989,2563.6,2563.5,0.8239]
[1747582215271,2.10659,2563.6,2563.5,0.8239]
[1747582215471,5.31439,2563.6,2563.5,0.8239]
[1747582216579,0.77989,2563.6,2563.5,2.88142]
[1747582216889,0.77989,2563.6,2563.5,2.1015]
[1747582218379,3.98769,2563.6,2563.5,2.1015]
[1747582218875,3.98769,2563.6,2563.2,0.856]
[1747582218876,8.2078,2563.6,2563.1,3.2078]
[1747582219081,0.78007,2563.0,2562.9,1.1547462]
[1747582220183,3.2078,2563.2,2563.1,0.78004]
[1747582221284,3.98781,2563.2,2563.1,0.78004]
[1747582221483,3.98781,2563.2,2562.8,0.86]
[1747582221484,1.94989,2563.4,2562.8,0.86]
[1747582221783,3.2078,2563.2,2562.2,11.9518]
[1747582221976,0.78018,2562.7,2562.6,0.78018]
[1747582222775,0.78026,2562.4,2562.3,1.72]
[1747582223183,0.78026,2562.4,2562.3,0.8636]
[1747582223782,0.78026,2562.4,2562.3,1.64389]
[1747582224084,0.78026,2562.4,2562.3,0.8636]
[1747582224380,3.2078,2562.9,2562.3,0.8636]
[1747582224577,0.78021,2562.6,2562.4,0.78024]
[1747582224780,0.78018,2562.7,2562.3,1.7275]
[1747582224981,0.78018,2562.7,2562.5,0.78021]
[1747582225184,10.1027,2562.8,2562.3,1.7275]
[1747582225484,0.78026,2562.4,2562.3,0.8636]
[1747582225981,5.0,2562.4,2561.9,0.8639]
[1747582226184,0.78032,2562.2,2561.9,0.8639]
[1747582226377,3.2078,2562.3,2561.9,0.8639]
[1747582226581,3.2078,2562.3,2562.2,0.78032]
[1747582226783,3.2078,2562.3,2561.9,0.8639]
[1747582226983,0.78034,2562.2,2562.0,0.78036]
[1747582227186,5.25491,2562.3,2562.1,0.78034]
[1747582227378,0.78033,2562.2,2562.0,0.78036]
[1747582228691,0.78035,2562.1,2561.9,1.6443]
[1747582229794,0.78038,2562.0,2561.9,1.6443]
[1747582230083,0.78036,2562.1,2561.9,1.6443]
[1747582230290,3.9881,2562.3,2561.9,0.8639]
[1747582230488,3.2078,2562.3,2562.2,0.78032]
[1747582230893,3.2078,2562.3,2561.9,0.8639]
[1747582231093,0.78034,2562.2,2562.0,0.78036]
[1747582231390,3.2078,2562.3,2561.9,1.6443]
[1747582231587,1.3081,2562.2,2561.9,1.6443]
[1747582231786,0.78038,2562.1,2561.9,1.6443]
[1747582231988,0.78038,2562.0,2561.9,0.8639]
[1747582232295,1.3081,2562.2,2561.9,1.64431]
[1747582232489,0.78035,2562.1,2561.9,1.64431]
[1747582232791,0.78038,2562.0,2561.9,1.6443]
[1747582233090,3.2078,2562.3,2561.9,0.8639]
[1747582233289,3.2078,2562.3,2562.2,0.78032]
[1747582233688,9.51626,2562.4,2562.2,0.78032]
[1747582233887,9.51626,2562.4,2562.3,0.8969]
[1747582235297,9.51626,2562.4,2562.3,1.67719]
[1747582236499,9.51626,2562.4,2562.3,0.8969]
[1747582236897,0.78032,2562.2,2562.0,0.78035]
[1747582237198,0.78032,2562.2,2562.1,0.78035]
[1747582238187,0.78032,2562.2,2562.1,2.03525]
[1747582238388,0.78032,2562.2,2562.1,2.03523]
[1747582238694,0.78032,2562.2,2562.1,1.2549]
[1747582239198,0.78032,2562.2,2562.1,2.03525]
[1747582239701,9.51627,2562.4,2562.3,0.78028]
[1747582239904,0.78029,2562.3,2562.2,2.1069]
[1747582240199,3.2078,2562.6,2562.5,0.78023]
[1747582240803,0.78023,2562.5,2562.4,0.8912]
[1747582240999,0.78026,2562.4,2562.3,1.3266]
[1747582241200,2.11074,2562.5,2562.4,0.78026]
[1747582241406,3.2078,2562.5,2562.4,0.78023]
[1747582241703,3.98803,2562.5,2562.4,0.78023]
[1747582241902,0.78026,2562.4,2562.3,1.3266]
[1747582242195,0.78032,2562.2,2562.1,0.8912]
[1747582242401,0.78035,2562.1,2562.0,2.2608]
[1747582242602,2.10425,2562.1,2562.0,2.2608]
[1747582242804,0.78044,2561.8,2561.7,0.8912]
[1747582243103,0.78044,2561.8,2561.7,2.2514]
[1747582243296,0.78047,2561.7,2561.6,1.15485967]
[1747582243903,2.10437,2561.7,2561.6,1.15485967]
[1747582244103,0.78052,2561.6,2561.2,2.1699]
[1747582244305,8.737,2561.7,2561.5,0.78053]
[1747582244602,0.78052,2561.6,2561.4,0.78055]
[1747582244802,0.78052,2561.6,2561.5,1.3602]
[1747582245105,9.5175,2561.7,2561.5,2.14072]
[1747582245306,0.7805,2561.6,2561.5,1.3602]
[1747582246301,3.2078,2561.6,2561.2,0.8097]
[1747582246497,0.78058,2561.4,2561.3,1.2696]
[1747582247408,4.5424,2561.6,2561.3,2.05018]
[1747582247409,0.78054,2561.5,2561.3,2.05018]
[1747582248013,0.78051,2561.6,2561.4,0.78054]
[1747582248313,0.78051,2561.6,2561.5,1.2897]
[1747582248610,0.78051,2561.6,2561.5,2.1252]
[1747582249112,0.78059,2561.3,2561.2,0.8097]
[1747582249816,0.78059,2561.3,2561.2,1.59032]
[1747582250014,0.78059,2561.3,2561.2,0.8097]
[1747582250406,0.78058,2561.4,2561.3,0.78059]
[1747582250606,0.78058,2561.4,2561.3,1.2897]
[1747582251906,8.738,2561.5,2561.0,0.8097]
[1747582252106,0.78056,2561.4,2561.3,0.8334]
[1747582252406,2.09516,2561.4,2561.3,0.8334]
[1747582252801,1.3146,2561.4,2561.0,0.8097]
[1747582253009,0.78065,2561.1,2561.0,0.8097]
[1747582254007,0.78071,2560.9,2560.8,2.1432]
[1747582255011,3.98848,2561.0,2560.9,0.78071]
[1747582255214,8.739,2561.2,2560.9,1.2738]
[1747582255410,3.2078,2561.3,2561.2,0.78062]
[1747582255709,3.2078,2561.3,2560.9,3.22554]
[1747582255710,3.2078,2561.3,2560.9,1.2738]
[1747582255912,3.98841,2561.3,2561.1,0.78063]
[1747582256112,0.78061,2561.3,2561.2,1.2738]
[1747582256311,0.78061,2561.3,2561.2,2.1145]
[1747582257617,0.78061,2561.3,2561.2,2.89512]
[1747582258317,0.78061,2561.3,2561.2,2.1145]
[1747582258823,3.98841,2561.3,2561.2,2.1145]
[1747582259015,5.35431,2561.3,2561.2,2.1145]
[1747582259213,0.78062,2561.2,2560.8,0.8334]
[1747582259412,0.78062,2561.2,2561.1,0.78065]
[1747582259822,12.72841,2561.3,2561.2,0.78062]
[1747582260021,3.2078,2561.3,2561.2,0.78062]
[1747582260422,3.98839,2561.3,2561.2,0.78062]
[1747582261618,3.2078,2561.3,2561.2,0.78062]
[1747582262726,8.704,2561.5,2561.2,0.78062]
[1747582262924,0.78056,2561.4,2561.3,2.1216]
[1747582263122,5.31736,2561.4,2561.3,2.1216]
[1747582263723,0.78068,2561.0,2560.9,0.8551]
[1747582263935,0.78071,2560.9,2560.8,1.3207]
[1747582264123,11.9118,2561.1,2560.6,1.93564967]
[1747582264124,13.86351,2561.1,2560.6,1.15485967]
[1747582264329,0.78077,2560.7,2560.6,1.15485967]
[1747582264823,2.01647,2560.7,2560.6,1.15485967]
[1747582265018,3.2078,2560.8,2560.6,1.93565967]
[1747582265229,3.2078,2560.8,2560.7,2.10147]
[1747582265428,1.6107,2561.3,2561.0,0.78066]
[1747582265429,0.78063,2561.2,2561.0,0.78066]
[1747582265721,0.78063,2561.2,2561.1,3.0678]
[1747582266121,0.78062,2561.2,2561.1,3.0678]
[1747582266432,0.78062,2561.2,2561.1,3.84845]
[1747582266631,3.2078,2561.3,2561.2,0.78062]
[1747582267125,3.2078,2561.3,2561.1,3.0678]
[1747582267326,3.98839,2561.3,2561.2,1.2613]
[1747582268633,3.2078,2561.3,2560.3,4.36265967]
[1747582268834,0.78074,2560.8,2560.7,1.7038]
[1747582269133,0.78077,2560.7,2560.6,1.2613]
[1747582269931,3.98857,2560.7,2560.6,1.2613]
[1747582270332,0.78083,2560.5,2560.4,2.02025967]
[1747582270632,0.78083,2560.5,2560.4,1.15485967]
[1747582273157,0.78086,2560.4,2560.3,1.5398129]
[1747582273353,8.704,2560.6,2560.2,1.2471]
[1747582273849,0.7809,2560.3,2560.2,1.2471]
[1747582275355,0.7809,2560.4,2560.2,2.02802]
[1747582275649,0.7809,2560.3,2560.2,1.2471]
[1747582275952,0.7809,2560.3,2560.1,0.78094]
[1747582276559,0.78093,2560.2,2560.1,0.78094]
[1747582276943,9.48689,2560.4,2560.2,0.78092]
[1747582277149,9.48689,2560.4,2560.0,1.6447]
[1747582277150,0.78093,2560.2,2560.1,0.78095]
[1747582277653,0.78093,2560.2,2560.0,1.6447]
[1747582277654,0.78093,2560.2,2560.0,2.42567]
[1747582277853,0.78093,2560.2,2560.1,0.78096]
[1747582278555,0.78096,2560.1,2560.0,1.6447]
[1747582280555,0.78096,2560.1,2560.0,2.42569]
[1747582282055,9.5634,2560.4,2560.0,1.6447]
[1747582282254,0.78096,2560.1,2560.0,1.6447]
[1747582283050,0.78096,2560.1,2560.0,2.42569]
[1747582283858,0.78096,2560.1,2560.0,1.6447]
[1747582284550,0.78095,2560.2,2560.0,1.6447]
[1747582284858,0.78095,2560.2,2560.1,0.78096]
[1747582285059,0.78095,2560.2,2560.0,1.6447]
[1747582285255,0.78095,2560.2,2560.1,0.78096]
[1747582285452,4.0748,2560.7,2560.0,1.6447]
[1747582285657,8.707,2560.6,2560.0,3.59714]
[1747582285856,9.48783,2560.6,2560.5,0.78083]
[1747582286052,0.78087,2560.4,2560.3,0.78088]
[1747582286456,1.95209,2560.5,2560.0,1.6447]
[1747582286653,0.78096,2560.1,2560.0,1.6447]
[1747582287359,0.78096,2560.1,2560.0,2.42569]
[1747582287862,0.78095,2560.2,2560.1,0.78095]
[1747582288054,0.78096,2560.1,2560.0,2.42567]
[1747582288257,0.78096,2560.1,2560.0,3.68739]
[1747582288556,0.78096,2560.1,2560.0,2.9064]
[1747582291155,4.5579,2560.4,2560.1,0.78094]
[1747582291455,0.7809,2560.3,2560.2,1.2459]
[1747582291858,2.0437,2560.3,2560.2,1.2459]
[1747582292059,0.78096,2560.1,2560.0,0.811]
[1747582292657,2.04376,2560.1,2560.0,0.811]
[1747582293261,0.78096,2560.1,2560.0,0.811]
[1747582293964,1.2628,2560.3,2560.0,0.811]
[1747582294169,0.78093,2560.2,2560.1,1.2344]
[1747582295060,0.78093,2560.2,2560.1,2.1106]
[1747582296253,9.4569,2560.3,2560.2,0.78093]
[1747582296457,0.78093,2560.2,2560.1,2.1106]
[1747582296751,0.78093,2560.2,2560.1,0.8762]
[1747582297164,2.03903,2560.2,2560.1,0.8762]
[1747582298359,0.78096,2560.1,2560.0,0.811]
[1747582298657,5.24686,2560.1,2560.0,0.811]
[1747582302367,3.98876,2560.1,2560.0,0.811]
[1747582303874,0.78111,2559.6,2559.5,1.15485967]
[1747582304466,0.78111,2559.6,2559.5,1.93597967]
[1747582305266,0.78111,2559.6,2559.5,0.78112]
[1747582305665,0.78114,2559.5,2559.4,1.65535]
[1747582306479,0.78114,2559.5,2559.4,0.8742]
[1747582306665,0.78123,2559.2,2559.1,1.15485967]
[1747582306862,12.66603,2559.2,2559.1,1.15485967]
[1747582307564,3.98903,2559.2,2559.1,1.15485967]
[1747582307770,9.45823,2559.2,2559.1,1.15485967]